bitfinex/quotes_BTCUSD_20250813
["timestamp","ask_amount","ask_price","bid_price","bid_amount"]
[1755095645106,0.73684529,121650.0,121640.0,0.32233]
[1755095645321,0.73684529,121650.0,121640.0,0.46281]
[1755095645523,0.73684529,121650.0,121640.0,0.46277]
[1755095645760,0.76184529,121650.0,121640.0,0.46277]
[1755095647663,0.76184529,121650.0,121640.0,0.32233]
[1755095647877,0.76184529,121650.0,121640.0,0.14044]
[1755095648969,0.31873471,121650.0,121640.0,0.14044]
[1755095649199,0.76184529,121650.0,121640.0,0.14044]
[1755095649900,0.02809415,121630.0,121620.0,0.00837944]
[1755095650155,0.70526798,121630.0,121620.0,0.00837944]
[1755095650375,0.05309415,121600.0,121590.0,0.40992771]
[1755095650601,0.05309415,121600.0,121590.0,0.55024771]
[1755095651291,0.05309415,121600.0,121590.0,0.48032]
[1755095651541,0.05309415,121600.0,121590.0,0.89012924]
[1755095651983,0.05309415,121600.0,121590.0,0.89320924]
[1755095652202,0.05609415,121600.0,121590.0,0.89320924]
[1755095652439,0.05609415,121600.0,121590.0,0.885]
[1755095652892,0.04477,121600.0,121590.0,0.6802]
[1755095653119,0.05609415,121600.0,121590.0,0.7018412]
[1755095653338,0.05609415,121600.0,121590.0,0.00308]
[1755095653578,0.05609415,121600.0,121590.0,0.14434281]
[1755095654032,0.04477,121600.0,121590.0,0.14434281]
[1755095654260,0.01432415,121600.0,121590.0,0.08682606]
[1755095654487,0.05609415,121600.0,121590.0,0.22702606]
[1755095654723,0.003,121600.0,121590.0,0.22600325]
[1755095654932,0.05609415,121600.0,121590.0,0.0939167]
[1755095655141,0.04177,121600.0,121590.0,0.23513951]
[1755095655364,0.04177,121600.0,121590.0,1.9497447]
[1755095655563,0.04177,121600.0,121590.0,1.7355589]
[1755095655773,0.05309415,121600.0,121590.0,1.6446177]
[1755095655935,0.05309415,121600.0,121590.0,1.1274207]
[1755095656147,0.05309415,121600.0,121590.0,1.1020177]
[1755095656355,0.05309415,121600.0,121590.0,1.0804417]
[1755095656954,0.05309415,121600.0,121590.0,0.9402817]
[1755095657154,0.05309415,121600.0,121590.0,0.8216677]
[1755095657359,0.05309415,121600.0,121590.0,1.0799207]
[1755095657622,0.05309415,121600.0,121590.0,0.9856797]
[1755095657776,0.05309415,121600.0,121590.0,0.97756625]
[1755095658583,0.05309415,121600.0,121590.0,0.87026825]
[1755095658787,0.05309415,121600.0,121590.0,0.63223225]
[1755095658993,0.05309415,121600.0,121590.0,0.70741225]
[1755095659213,0.05309415,121600.0,121590.0,0.59150825]
[1755095659381,0.05309415,121600.0,121590.0,0.45142825]
[1755095659782,0.05309415,121600.0,121590.0,0.59988595]
[1755095659991,0.05309415,121600.0,121590.0,0.57526095]
[1755095660411,0.05309415,121600.0,121590.0,0.59988695]
[1755095661103,0.05309415,121600.0,121590.0,0.5171637]
[1755095661306,0.05309415,121600.0,121590.0,0.3771237]
[1755095661507,0.05309415,121600.0,121590.0,0.9188437]
[1755095662118,0.05309415,121600.0,121590.0,0.9157637]
[1755095662543,0.05309415,121600.0,121590.0,0.64032]
[1755095662745,0.05309415,121600.0,121590.0,0.67788]
[1755095663173,0.05309415,121600.0,121590.0,0.67688]
[1755095663802,0.05409415,121600.0,121590.0,0.67996]
[1755095664015,0.04277,121600.0,121590.0,0.34504]
[1755095664230,0.01232415,121600.0,121590.0,0.79721045]
[1755095664428,0.05409415,121600.0,121590.0,0.94525368]
[1755095665064,0.01232415,121600.0,121590.0,0.80533368]
[1755095665289,0.001,121600.0,121590.0,1.13396888]
[1755095665498,0.001,121600.0,121590.0,1.27384888]
[1755095665716,0.001,121600.0,121590.0,1.13396888]
[1755095665916,0.001,121600.0,121590.0,1.37221368]
[1755095666325,0.001,121600.0,121590.0,1.37317368]
[1755095666535,0.04177,121640.0,121590.0,1.03380888]
[1755095666744,0.06999497,121660.0,121610.0,0.08272325]
[1755095666949,0.01132415,121650.0,121620.0,2.9509984]
[1755095667170,0.04177,121640.0,121630.0,1.35491436]
[1755095667377,0.04177,121640.0,121630.0,1.68276325]
[1755095667803,0.04177,121650.0,121640.0,0.34]
[1755095668008,0.04177,121650.0,121640.0,2.44307425]
[1755095668221,0.05309415,121650.0,121640.0,2.10735325]
[1755095668419,0.01132415,121650.0,121640.0,2.22993125]
[1755095668636,0.05309415,121650.0,121640.0,1.75661225]
[1755095668839,0.04177,121650.0,121640.0,1.61681225]
[1755095669044,0.04177,121650.0,121640.0,1.75657225]
[1755095669253,0.01447141,121660.0,121640.0,1.75757225]
[1755095669462,0.05624141,121660.0,121650.0,1.07498269]
[1755095669671,0.05624141,121660.0,121650.0,0.89438325]
[1755095669887,0.05624141,121660.0,121650.0,1.05808325]
[1755095670098,0.05624141,121660.0,121650.0,0.89129325]
[1755095670304,0.05624141,121660.0,121650.0,0.75153325]
[1755095670503,0.05724141,121660.0,121650.0,0.89125325]
[1755095670929,0.05724141,121660.0,121650.0,0.89121325]
[1755095671135,0.05624141,121660.0,121650.0,0.89121325]
[1755095671343,0.06226141,121660.0,121650.0,0.66881]
[1755095671545,0.06226141,121660.0,121650.0,0.96805]
[1755095671751,0.06226141,121660.0,121650.0,1.10773]
[1755095671956,0.06326141,121660.0,121650.0,0.96805]
[1755095672159,0.17980141,121660.0,121650.0,0.52569]
[1755095672364,0.17980141,121660.0,121650.0,0.32881]
[1755095672574,0.17980141,121660.0,121650.0,0.46845]
[1755095672981,0.17980141,121660.0,121650.0,0.80845]
[1755095674364,0.17980141,121660.0,121650.0,0.66881]
[1755095674738,0.17980141,121660.0,121650.0,0.80837]
[1755095675814,0.17980141,121660.0,121650.0,0.66881]
[1755095675932,0.26252466,121660.0,121650.0,0.32881]
[1755095676140,0.26252466,121660.0,121650.0,0.46833]
[1755095676607,0.26252466,121660.0,121650.0,0.32881]
[1755095676793,0.26252466,121660.0,121650.0,0.46833]
[1755095677168,0.25952466,121660.0,121650.0,0.46833]
[1755095677368,0.26352466,121660.0,121650.0,0.46833]
[1755095677713,0.27884847,121660.0,121650.0,0.46829]
[1755095677945,0.27784847,121660.0,121650.0,0.46829]
[1755095678153,0.72095905,121660.0,121650.0,0.46829]
[1755095678352,0.72395905,121660.0,121650.0,0.46829]
[1755095678714,0.74858205,121660.0,121650.0,0.46825]
[1755095678949,0.75062205,121660.0,121650.0,0.46825]
[1755095679159,0.75062205,121660.0,121650.0,0.32881]
[1755095679366,0.77562205,121660.0,121650.0,0.32881]
[1755095679541,0.80062205,121660.0,121650.0,0.46825]
[1755095679892,0.05309415,121610.0,121600.0,0.00309]
[1755095680081,0.05309415,121610.0,121600.0,0.1445]
[1755095680649,0.05309415,121610.0,121600.0,0.00506]
[1755095680853,0.05309415,121610.0,121600.0,0.14446]
[1755095681204,0.05309415,121610.0,121600.0,0.14646]
[1755095681397,0.05309415,121610.0,121600.0,0.14846]
[1755095681555,0.05309415,121610.0,121600.0,0.55002]
[1755095682057,0.05309415,121610.0,121600.0,0.34021]
[1755095682257,0.05513415,121610.0,121600.0,0.00397]
[1755095682662,0.05309415,121610.0,121600.0,0.00397]
[1755095682901,0.05309415,121610.0,121600.0,0.14133]
[1755095683273,0.05309415,121610.0,121600.0,0.14542]
[1755095683689,0.05309415,121610.0,121600.0,0.00506]
[1755095683908,0.05309415,121610.0,121600.0,0.14438]
[1755095684287,0.01132415,121610.0,121600.0,0.14434]
[1755095684517,0.05409415,121610.0,121600.0,0.22706325]
[1755095686071,0.01232415,121610.0,121600.0,0.92778325]
[1755095686275,0.001,121610.0,121600.0,1.84441345]
[1755095686626,0.04277,121610.0,121600.0,1.70509345]
[1755095686837,0.001,121610.0,121600.0,1.84433345]
[1755095687215,0.05409415,121610.0,121600.0,1.07262925]
[1755095687368,0.05409415,121610.0,121600.0,0.83282025]
[1755095687573,0.05409415,121610.0,121600.0,0.81228325]
[1755095687800,0.05309415,121610.0,121600.0,0.81228325]
[1755095687961,0.05309415,121610.0,121600.0,0.57735825]
[1755095688166,0.05309415,121610.0,121600.0,0.56898325]
[1755095688368,0.05309415,121610.0,121600.0,0.342]
[1755095688996,0.05309415,121610.0,121600.0,0.48016]
[1755095689174,0.05309415,121610.0,121600.0,0.48116]
[1755095689379,0.05309415,121610.0,121600.0,0.34]
[1755095689617,0.05309415,121610.0,121600.0,0.47916]
[1755095689819,0.05409415,121610.0,121600.0,0.47916]
[1755095690089,0.05409415,121610.0,121600.0,0.48016]
[1755095690327,0.05409415,121610.0,121600.0,0.341]
[1755095690529,0.05409415,121610.0,121600.0,0.34]
[1755095690730,0.05409415,121610.0,121600.0,0.47912]
[1755095690961,0.05509415,121610.0,121600.0,0.47912]
[1755095691676,0.05509415,121610.0,121600.0,0.88281]
[1755095692280,0.05509415,121610.0,121600.0,0.8859]
[1755095693356,0.05509415,121610.0,121600.0,0.7835]
[1755095695213,0.05509415,121610.0,121600.0,0.6811]
[1755095695390,0.05713415,121610.0,121600.0,0.67801]
[1755095695651,0.05713415,121610.0,121600.0,0.34197]
[1755095695851,0.05713415,121610.0,121600.0,0.479]
[1755095696057,0.06015415,121610.0,121600.0,0.34]
[1755095696280,0.05309415,121600.0,121590.0,0.00822073]
[1755095696485,0.05770405,121600.0,121590.0,0.14718073]
[1755095696624,0.06072405,121600.0,121590.0,0.13896]
[1755095696826,0.06072405,121600.0,121580.0,0.02864989]
[1755095697062,0.06072405,121600.0,121590.0,0.13896]
[1755095697283,0.05513415,121600.0,121590.0,0.14093]
[1755095697707,0.05309415,121600.0,121590.0,0.14093]
[1755095698960,0.05513415,121600.0,121590.0,0.14193]
[1755095699086,0.05513415,121600.0,121590.0,0.00297]
[1755095699287,0.05770405,121600.0,121590.0,0.14189]
[1755095699491,0.05770405,121600.0,121590.0,0.341]
[1755095699694,0.06087405,121600.0,121590.0,0.47988]
[1755095699898,0.17925405,121600.0,121590.0,0.341]
[1755095700119,0.17668415,121600.0,121590.0,0.341]
[1755095700550,0.05513415,121600.0,121590.0,0.4818]
[1755095700752,0.05566405,121600.0,121590.0,0.4818]
[1755095700955,0.05409415,121600.0,121590.0,0.48475]
[1755095701153,0.05409415,121600.0,121590.0,0.34491]
[1755095701401,0.05409415,121600.0,121590.0,0.48375]
[1755095701600,0.05609415,121600.0,121590.0,0.88547]
[1755095701962,0.05609415,121600.0,121590.0,0.44307]
[1755095702234,0.05609415,121600.0,121590.0,0.76869908]
[1755095702448,0.05609415,121600.0,121590.0,0.00491]
[1755095702658,0.05609415,121600.0,121590.0,0.14076]
[1755095702830,0.05609415,121600.0,121590.0,0.14473281]
[1755095703097,0.05509415,121600.0,121590.0,0.58649788]
[1755095703302,0.05509415,121600.0,121590.0,0.44773788]
[1755095703473,0.05609415,121600.0,121590.0,0.58649788]
[1755095703885,0.05609415,121600.0,121590.0,0.14367]
[1755095704086,0.05609415,121600.0,121590.0,0.14469281]
[1755095704303,0.05409415,121600.0,121590.0,0.14367]
[1755095704670,0.05509415,121600.0,121590.0,0.14367]
[1755095705978,0.05509415,121600.0,121590.0,0.14072]
[1755095706329,0.01132415,121590.0,121580.0,0.01400462]
[1755095706534,0.05511415,121590.0,121580.0,0.01301462]
[1755095706738,0.05828415,121590.0,121580.0,0.48973462]
[1755095706943,0.05511415,121590.0,121580.0,0.48364]
[1755095707154,0.05511415,121590.0,121580.0,0.34496]
[1755095707364,0.05309415,121590.0,121580.0,0.48659]
[1755095707959,0.05309415,121590.0,121580.0,0.48759]
[1755095708235,0.05309415,121590.0,121580.0,0.48464]
[1755095708848,0.05309415,121590.0,121580.0,0.34596]
[1755095709060,0.05309415,121590.0,121580.0,0.48464]
[1755095709262,0.05511415,121590.0,121580.0,0.49269284]
[1755095710032,0.05309415,121590.0,121580.0,0.49269284]
[1755095710246,0.05309415,121590.0,121580.0,0.49564284]
[1755095710683,0.05309415,121590.0,121580.0,0.49556284]
[1755095711315,0.05309415,121590.0,121580.0,0.49552284]
[1755095711435,0.05309415,121590.0,121580.0,0.89728284]
[1755095711641,0.05511415,121590.0,121580.0,0.89433284]
[1755095712206,0.05309415,121590.0,121580.0,0.64827]
[1755095712439,0.05309415,121590.0,121580.0,1.22965788]
[1755095712792,0.05309415,121590.0,121580.0,0.78683]
[1755095713252,0.05511415,121590.0,121580.0,0.55102794]
[1755095713405,0.05828415,121590.0,121580.0,0.49058794]
[1755095713608,0.05828415,121590.0,121580.0,0.35210794]
[1755095714013,0.17666415,121590.0,121580.0,0.01210794]
[1755095714213,0.17666415,121590.0,121580.0,0.01110794]
[1755095714568,0.17766415,121590.0,121580.0,0.48954794]
[1755095714928,0.17666415,121590.0,121580.0,0.48954794]
[1755095715133,0.17966415,121590.0,121580.0,0.48954794]
[1755095716126,0.18066415,121590.0,121580.0,0.48954794]
[1755095716725,0.17966415,121590.0,121580.0,0.48954794]
[1755095716931,0.17966415,121590.0,121580.0,0.48144]
[1755095717135,0.18166415,121590.0,121580.0,0.48144]
[1755095717542,0.06011415,121590.0,121580.0,0.4834]
[1755095717815,0.06011415,121590.0,121580.0,0.49144916]
[1755095718573,0.06328415,121590.0,121580.0,0.48948916]
[1755095719373,0.1460074,121590.0,121580.0,0.01104916]
[1755095719617,0.26695751,121590.0,121580.0,0.14936916]
[1755095719792,0.2643874,121590.0,121580.0,0.01104916]
[1755095719993,0.2643874,121590.0,121580.0,0.14936916]
[1755095720901,0.2643874,121590.0,121580.0,0.01104916]
[1755095721102,0.01632415,121590.0,121580.0,0.01595916]
[1755095721301,0.01632415,121590.0,121580.0,0.85595916]
[1755095721548,0.05809415,121590.0,121580.0,1.23642704]
[1755095721728,0.05809415,121590.0,121580.0,2.33863913]
[1755095721903,0.05509415,121590.0,121580.0,2.47321913]
[1755095722113,0.05509415,121590.0,121580.0,2.28232013]
[1755095722340,0.05709415,121590.0,121580.0,1.58338013]
[1755095722538,0.05309415,121590.0,121580.0,1.58338013]
[1755095722735,0.05309415,121590.0,121580.0,1.38642013]
[1755095722943,0.05509415,121590.0,121580.0,1.38642013]
[1755095723420,0.05409415,121590.0,121580.0,1.3946932]
[1755095724147,0.05309415,121590.0,121580.0,1.2564532]
[1755095724352,0.05309415,121590.0,121580.0,1.3946532]
[1755095724583,0.05309415,121590.0,121580.0,1.3956532]
[1755095724922,0.05309415,121590.0,121580.0,0.81462532]
[1755095725057,0.05309415,121590.0,121580.0,1.0692012]
[1755095725258,0.05309415,121590.0,121580.0,1.2073612]
[1755095726464,0.04177,121590.0,121580.0,1.3073612]
[1755095726691,0.05309415,121590.0,121580.0,1.3073612]
[1755095727056,0.04177,121590.0,121580.0,1.3073612]
[1755095727219,0.01132415,121600.0,121580.0,1.1908424]
[1755095727458,0.05309415,121600.0,121590.0,1.8646281]
[1755095727666,0.05309415,121600.0,121590.0,2.00364513]
[1755095727981,0.05309415,121600.0,121590.0,1.86556513]
[1755095728184,0.05309415,121600.0,121590.0,2.00364513]
[1755095728599,0.05309415,121600.0,121590.0,1.56081725]
[1755095729031,0.05239415,121600.0,121590.0,2.00364513]
[1755095729262,0.04207,121600.0,121590.0,1.86556513]
[1755095729457,0.04207,121600.0,121590.0,2.35420633]
[1755095729665,0.001,121600.0,121590.0,2.21616633]
[1755095729961,0.002,121600.0,121590.0,2.35420633]
[1755095730169,0.002,121600.0,121590.0,2.25018222]
[1755095730380,0.01132415,121630.0,121590.0,2.25018222]
[1755095730584,0.01132415,121630.0,121620.0,0.44282788]
[1755095730585,0.05254141,121630.0,121620.0,0.44282788]
[1755095730814,0.01147141,121630.0,121620.0,2.27946933]
[1755095731010,0.05254141,121630.0,121620.0,1.75882333]
[1755095731205,0.05254141,121630.0,121620.0,1.49334145]
[1755095731420,0.05254141,121630.0,121620.0,1.83704233]
[1755095731734,0.05254141,121630.0,121620.0,1.97504233]
[1755095732075,0.05254141,121630.0,121620.0,1.53221445]
[1755095732285,0.05254141,121630.0,121620.0,1.40197625]
[1755095732499,0.05254141,121630.0,121620.0,0.97953125]
[1755095732695,0.05748141,121630.0,121620.0,0.694508]
[1755095733124,0.05748141,121630.0,121620.0,0.832428]
[1755095733375,0.04121726,121630.0,121620.0,2.40893845]
[1755095733589,0.17094141,121630.0,121620.0,1.64243645]
[1755095733788,0.17291141,121630.0,121620.0,1.40567245]
[1755095733985,0.17291141,121630.0,121620.0,1.40467245]
[1755095734190,0.17094141,121630.0,121620.0,1.40467245]
[1755095734408,0.17094141,121630.0,121620.0,0.96509457]
[1755095734829,0.17291141,121630.0,121620.0,0.97003918]
[1755095735236,0.17294141,121630.0,121620.0,0.83536918]
[1755095735478,0.17294141,121630.0,121620.0,1.43771826]
[1755095735897,0.12054726,121630.0,121620.0,1.52044151]
[1755095736099,0.17294141,121630.0,121620.0,1.35821694]
[1755095736302,0.13187141,121630.0,121620.0,0.91538906]
[1755095736417,0.13187141,121630.0,121620.0,1.49605694]
[1755095736613,0.17094141,121630.0,121620.0,1.49605694]
[1755095736828,0.17094141,121630.0,121620.0,1.48786233]
[1755095737451,0.13187141,121630.0,121620.0,1.48786233]
[1755095737846,0.16161726,121630.0,121620.0,1.51257814]
[1755095738047,0.16161726,121630.0,121620.0,1.9634859]
[1755095738247,0.16161726,121630.0,121620.0,1.38285802]
[1755095738469,0.16161726,121630.0,121620.0,1.36121682]
[1755095738670,0.16161726,121630.0,121620.0,1.49901682]
[1755095738878,0.15961726,121630.0,121620.0,1.49901682]
[1755095739314,0.11854726,121630.0,121620.0,1.49901682]
[1755095739523,0.15961726,121630.0,121620.0,1.49901682]
[1755095739733,0.11854726,121630.0,121620.0,1.36121682]
[1755095739945,0.15961726,121630.0,121620.0,1.49897682]
[1755095740114,0.15961726,121630.0,121620.0,1.36121682]
[1755095740318,0.15961726,121630.0,121620.0,1.49897682]
[1755095741546,0.15961726,121630.0,121620.0,1.90057682]
[1755095741951,0.15961726,121630.0,121620.0,1.89249694]
[1755095742154,0.15961726,121630.0,121620.0,1.65237694]
[1755095742312,0.15961726,121630.0,121620.0,1.79009694]
[1755095742516,0.15961726,121630.0,121620.0,1.65237694]
[1755095742713,0.15961726,121630.0,121620.0,1.79005694]
[1755095742916,0.15961726,121630.0,121620.0,1.55001694]
[1755095743153,0.15961726,121630.0,121620.0,1.68769694]
[1755095743761,0.15961726,121630.0,121620.0,1.34988694]
[1755095743976,0.15961726,121630.0,121620.0,1.49077694]
[1755095744538,0.15961726,121630.0,121620.0,1.49907671]
[1755095745647,0.15961726,121630.0,121620.0,0.91860883]
[1755095745846,0.15961726,121630.0,121620.0,1.36143671]
[1755095746087,0.15961726,121630.0,121620.0,1.49903671]
[1755095747873,0.17291141,121630.0,121620.0,1.17152346]
[1755095748017,0.17291141,121630.0,121620.0,1.41983846]
[1755095748831,0.17291141,121630.0,121620.0,1.30904346]
[1755095749036,0.17291141,121630.0,121620.0,1.45999546]
[1755095749691,0.17391141,121630.0,121620.0,1.41713846]
[1755095749890,0.17688141,121630.0,121620.0,0.72656558]
[1755095750140,0.17688141,121630.0,121620.0,0.86404558]
[1755095750877,0.17688141,121630.0,121620.0,0.72656558]
[1755095751091,0.30138141,121630.0,121620.0,0.36180977]
[1755095751281,0.30038141,121630.0,121620.0,0.47462977]
[1755095751481,0.30038141,121630.0,121620.0,0.88822129]
[1755095751663,0.30038141,121630.0,121620.0,0.75078129]
[1755095752027,0.30138141,121630.0,121620.0,0.68350129]
[1755095752446,0.30138141,121630.0,121620.0,0.54606129]
[1755095752655,0.30138141,121630.0,121620.0,0.68918129]
[1755095752855,0.30138141,121630.0,121620.0,0.82658129]
[1755095755628,0.30138141,121630.0,121620.0,0.82654129]
[1755095755840,0.17391141,121630.0,121620.0,0.82867129]
[1755095756428,0.17391141,121630.0,121620.0,1.27149917]
[1755095756850,0.17391141,121630.0,121620.0,0.82867129]
[1755095757056,0.17391141,121630.0,121620.0,0.68918129]
[1755095757314,0.17688141,121630.0,121620.0,0.82654129]
[1755095757859,0.17688141,121630.0,121620.0,0.68918129]
[1755095758063,0.30138141,121630.0,121620.0,0.68918129]
[1755095758276,0.17391141,121630.0,121620.0,0.82859129]
[1755095758454,0.16258726,121630.0,121620.0,0.82859129]
[1755095758668,5.17391141,121630.0,121620.0,0.82859129]
[1755095760355,5.17687141,121630.0,121620.0,0.82646129]
[1755095760576,5.17687141,121630.0,121620.0,0.68918129]
[1755095760796,5.17687141,121630.0,121620.0,0.82646129]
[1755095760797,5.29921141,121630.0,121620.0,0.82646129]
[1755095760970,5.29921141,121630.0,121620.0,0.82642129]
[1755095761537,5.28788726,121630.0,121620.0,1.22802129]
[1755095761746,5.29921141,121630.0,121620.0,1.22802129]
[1755095764859,5.29921141,121630.0,121620.0,1.02330129]
[1755095765553,5.17391141,121630.0,121620.0,0.82845129]
[1755095767703,5.17687141,121630.0,121620.0,0.82630129]
[1755095768946,5.17687141,121630.0,121620.0,0.68918129]
[1755095769144,5.17687141,121630.0,121620.0,0.82626129]
[1755095771433,5.17687141,121630.0,121620.0,0.79158129]
[1755095771644,5.17391141,121630.0,121620.0,0.99065129]
[1755095771791,5.17391141,121630.0,121620.0,0.88825129]
[1755095771995,5.16258726,121630.0,121620.0,1.02525129]
[1755095772221,5.17391141,121630.0,121620.0,1.02833129]
[1755095772469,5.16258726,121630.0,121620.0,0.69133129]
[1755095772674,5.17391141,121630.0,121620.0,0.69441129]
[1755095772800,5.17391141,121630.0,121620.0,0.83141129]
[1755095773603,5.17391141,121630.0,121620.0,0.82833129]
[1755095774276,5.17391141,121630.0,121620.0,0.64174674]
[1755095775288,5.17687141,121630.0,121620.0,0.63959674]
[1755095775945,5.17391141,121630.0,121620.0,0.64174674]
[1755095776651,5.17391141,121630.0,121620.0,1.02252915]
[1755095776871,5.17194141,121630.0,121620.0,1.02252915]
[1755095778112,5.17194141,121630.0,121620.0,0.64482674]
[1755095778316,5.17194141,121630.0,121620.0,1.02252915]
[1755095778517,5.17194141,121630.0,121620.0,0.64482674]
[1755095778673,5.17405141,121630.0,121620.0,0.63947674]
[1755095778895,5.17701141,121630.0,121620.0,0.63947674]
[1755095780213,5.17701141,121630.0,121620.0,0.50259674]
[1755095780400,5.17701141,121630.0,121620.0,1.01713915]
[1755095780609,5.17701141,121630.0,121620.0,1.01709915]
[1755095780810,5.17701141,121630.0,121620.0,0.50259674]
[1755095781025,5.17701141,121630.0,121620.0,0.63939674]
[1755095781225,5.17405141,121630.0,121620.0,0.50474674]
[1755095781478,5.17405141,121630.0,121620.0,1.04326674]
[1755095781682,5.17405141,121630.0,121620.0,1.42096915]
[1755095782648,5.17405141,121630.0,121620.0,1.18176915]
[1755095782849,5.17405141,121630.0,121620.0,1.07936915]
[1755095782971,5.17194141,121630.0,121620.0,1.21920915]
[1755095784794,5.17194141,121630.0,121620.0,1.02228915]
[1755095785394,5.17405141,121630.0,121620.0,0.88244915]
[1755095785712,5.17701141,121630.0,121620.0,0.63927674]
[1755095785906,5.29935141,121630.0,121620.0,0.63927674]
[1755095786802,5.29935141,121630.0,121620.0,0.50259674]
[1755095787003,5.29935141,121630.0,121620.0,0.63927674]
[1755095788021,5.29935141,121630.0,121620.0,0.50259674]
[1755095788253,5.29935141,121630.0,121620.0,0.63923674]
[1755095789552,5.38207466,121630.0,121620.0,0.63923674]
[1755095789788,5.75977707,121630.0,121620.0,0.16259674]
[1755095790015,5.38207466,121630.0,121620.0,0.16259674]
[1755095790242,5.38207466,121630.0,121620.0,0.29919674]
[1755095790469,5.38207466,121630.0,121620.0,0.16259674]
[1755095790693,5.38207466,121630.0,121620.0,0.29919674]
[1755095791367,5.75977707,121630.0,121620.0,0.29919674]
[1755095791573,5.75977707,121630.0,121620.0,0.70091674]
[1755095791810,5.75977707,121630.0,121620.0,0.45361697]
[1755095792048,0.05239415,121590.0,121580.0,0.14739905]
[1755095792279,0.2617874,121590.0,121580.0,0.003]
[1755095793174,0.2617874,121590.0,121580.0,0.13956]
[1755095793381,0.2617874,121590.0,121580.0,0.13952]
[1755095793382,0.26190845,121590.0,121580.0,0.13952]
[1755095793604,0.26290845,121590.0,121580.0,0.14758498]
[1755095793813,0.26290845,121590.0,121580.0,0.01106498]
[1755095794018,0.26290845,121590.0,121580.0,0.14758498]
[1755095794856,0.26190845,121590.0,121580.0,0.14858498]
[1755095795258,0.26390845,121590.0,121580.0,0.14858498]
[1755095796499,0.26390845,121590.0,121580.0,0.14854498]
[1755095796831,0.26390845,121590.0,121580.0,0.01206498]
[1755095797204,0.26390845,121590.0,121580.0,0.14854498]
[1755095797477,0.70698409,121590.0,121580.0,0.14854498]
[1755095797688,0.73198409,121590.0,121580.0,0.004]
[1755095797862,0.8326825,121590.0,121580.0,0.004]
[1755095798072,0.8326825,121590.0,121580.0,0.14044]
[1755095798231,0.75698409,121590.0,121580.0,0.14044]
[1755095798433,0.75498409,121590.0,121580.0,0.14044]
[1755095798671,0.75898409,121590.0,121580.0,0.13944]
[1755095799117,0.75898409,121590.0,121580.0,0.003]
[1755095799320,0.84146852,121590.0,121580.0,0.13944]
[1755095799520,0.84146852,121590.0,121580.0,0.003]
[1755095800195,1.18962089,121590.0,121580.0,0.1394]
[1755095800644,0.73839288,121590.0,121580.0,0.1394]
[1755095800861,1.18146852,121590.0,121580.0,0.1394]
[1755095801557,1.18146852,121590.0,121580.0,0.43876]
[1755095802672,0.73839288,121590.0,121580.0,0.43876]
[1755095802887,1.18146852,121590.0,121580.0,0.43876]
[1755095803328,0.65590845,121590.0,121580.0,0.43876]
[1755095803506,0.29090845,121590.0,121580.0,0.19996]
[1755095803683,0.31590845,121590.0,121580.0,0.003]
[1755095803866,0.31590845,121590.0,121580.0,0.13936]
[1755095804083,0.31590845,121590.0,121580.0,0.003]
[1755095804084,0.75898409,121590.0,121580.0,0.003]
[1755095804542,0.75898409,121590.0,121580.0,0.13932]
[1755095804884,0.75898409,121590.0,121580.0,0.003]
[1755095805089,0.75898409,121590.0,121580.0,0.13936]
[1755095805770,0.75898409,121590.0,121580.0,0.003]
[1755095806007,0.77426649,121590.0,121580.0,0.003]
[1755095806253,1.11426649,121590.0,121580.0,0.13932]
[1755095806501,1.11426649,121590.0,121580.0,0.003]
[1755095807028,1.11426649,121590.0,121580.0,0.13928]
[1755095807278,1.19275092,121590.0,121580.0,0.13928]
[1755095807499,1.1927396,121590.0,121580.0,0.13928]
[1755095807712,1.2027396,121590.0,121580.0,0.13928]
[1755095807932,1.1977396,121590.0,121580.0,0.13928]
[1755095808166,1.1997396,121590.0,121580.0,0.13928]
[1755095808392,1.2067396,121590.0,121580.0,0.003]
[1755095808842,0.87505396,121590.0,121580.0,0.09695776]
[1755095809590,0.85005396,121590.0,121580.0,0.09695776]
[1755095809793,0.87505396,121590.0,121580.0,0.23319776]
[1755095809994,1.3181296,121590.0,121580.0,0.23319776]
[1755095810198,1.3177766,121590.0,121580.0,0.23319776]
[1755095810523,1.26618137,121590.0,121580.0,0.23319776]
[1755095810721,0.7058117,121590.0,121580.0,0.23319776]
[1755095810953,1.14677734,121590.0,121580.0,0.23319776]
[1755095811505,1.08070734,121590.0,121580.0,0.53267776]
[1755095811748,1.14677734,121590.0,121580.0,0.53267776]
[1755095811979,1.14677734,121590.0,121580.0,0.53263776]
[1755095812197,1.14677379,121590.0,121580.0,0.53263776]
[1755095812422,1.22925822,121590.0,121580.0,0.39643776]
[1755095812634,1.22925822,121590.0,121580.0,0.53263776]
[1755095813096,1.19293407,121590.0,121580.0,0.29399776]
[1755095813322,1.22925822,121590.0,121580.0,0.43019776]
[1755095813765,1.22925845,121590.0,121580.0,0.29399776]
[1755095813987,1.23136845,121590.0,121580.0,0.23315776]
[1755095814217,1.23136845,121590.0,121580.0,0.09695776]
[1755095814660,1.14888402,121590.0,121580.0,0.23311776]
[1755095815126,1.14888402,121590.0,121580.0,0.09695776]
[1755095815361,1.14888402,121590.0,121580.0,0.23311776]
[1755095816742,1.08420287,121590.0,121580.0,0.23311776]
[1755095816939,1.08420287,121590.0,121580.0,0.23080449]
[1755095817162,1.1666873,121590.0,121580.0,0.23080449]
[1755095817383,1.1666873,121590.0,121580.0,0.23076449]
[1755095818071,1.54507351,121590.0,121580.0,0.23076449]
[1755095818542,1.56796351,121590.0,121580.0,0.09464449]
[1755095818762,1.69862865,121590.0,121580.0,0.09464449]
[1755095818986,1.25490987,121590.0,121580.0,0.23072449]
[1755095819223,1.25490987,121590.0,121580.0,0.09464449]
[1755095819224,1.34129987,121590.0,121580.0,0.09464449]
[1755095819441,1.77801865,121590.0,121580.0,0.23072449]
[1755095819669,1.77101865,121590.0,121580.0,0.09464449]
[1755095819900,1.80617162,121590.0,121580.0,0.23172449]
[1755095820350,1.80617162,121590.0,121580.0,0.09564449]
[1755095820577,0.55378415,121580.0,121570.0,0.103]
[1755095820811,1.64328803,121580.0,121570.0,0.23904]
[1755095821071,1.74164525,121580.0,121570.0,0.23904]
[1755095821494,1.74164525,121580.0,121570.0,0.5386]
[1755095821847,1.74164525,121580.0,121570.0,0.40256]
[1755095822034,1.74564525,121580.0,121570.0,0.5386]
[1755095822225,1.74564525,121580.0,121570.0,0.40256]
[1755095822443,1.74564756,121580.0,121570.0,0.53856]
[1755095822787,1.71964756,121580.0,121570.0,0.52717457]
[1755095823243,1.74464756,121580.0,121570.0,0.52717457]
[1755095823470,1.74464756,121580.0,121570.0,0.39117457]
[1755095823700,0.12639415,121570.0,121560.0,0.003]
[1755095823925,1.62544809,121570.0,121560.0,0.33608]
[1755095824141,1.76042739,121570.0,121560.0,0.20008]